Cogmind - Beta 16 @@@ ROGUE MODE // 2026.01.25 @ 20:04:49 Player: Tollhouse Result: Destroyed by G-47 Trooper with Particle Gun Performance ------------- Evolutions (2) 1000 Regions Visited (3) 600 Robots Destroyed (58) 290 Value Destroyed (1146) 1146 Prototype IDs (0) 0 Alien Tech Used (0) 0 Bonus (0) 0 TOTAL SCORE: 3036 Bonus ------- None Cogmind --------- Core Integrity 0/550 Matter 431/500 Energy 100/100 System Corruption 0% Temperature Cool (9) Movement Core (450) Ox8 Location -8/Materials Parts ------- > --- POWER (2) -------- (None) > --- PROPULSION (3) --- (None) > --- UTILITY (4) ------ Large Storage Unit High-capacity Matter Pod Targeting Computer Advanced Targeting Computer > --- WEAPON (2) ------- Hammer > --- INVENTORY (15) --- Faulty Heavy Ion Engine Medium Battery (150) Advanced Targeting Computer Improved EM Shotgun Light EM Pulse Cannon Light EM Pulse Cannon Advanced Beam Cannon Mace Peak State ------------ > --- POWER ------------ Improved Ion Engine Deuterium Engine > --- PROPULSION ------- Aluminum Leg > --- UTILITY ---------- Large Storage Unit High-capacity Matter Pod Targeting Computer Advanced Targeting Computer > --- WEAPON ----------- Minigun Minigun > --- INVENTORY -------- Heavy Ion Engine Medium Battery Advanced Targeting Computer Improved EM Shotgun Light EM Pulse Cannon Light EM Pulse Cannon Advanced Beam Cannon Heavy Assault Rifle Rocket Launcher Hammer Mace [Rating: 20] Favorites ----------- Power Ion Engine Engine Ion Engine Power Core Light Nuclear Core Propulsion Aluminum Leg Treads Light Treads Leg Aluminum Leg Wheel Wheel Utility Large Storage Unit Storage Large Storage Unit Processor Visual Processing Unit Protection Light Armor Plating Weapon Hammer Energy Gun EM Pulse Gun Ballistic Gun Minigun Ballistic Cannon Light Cannon Launcher Grenade Launcher Impact Weapon Hammer Build | -11 -10 -9 -8 ------- Run | Yrd Mat Mat Mat Slots Evolved 4 | . . 2 2 Power 1 | . . . 1 Propulsion 1 | . . 1 . Utility 2 | . . 1 1 Weapon . | . . . . Parts Attached 40 | 6 8 18 8 Power 7 | 1 1 2 3 Engine 6 | 1 1 2 2 Core 1 | . . . 1 Reactor . | . . . . Propulsion 12 | 2 1 6 3 Treads 3 | 2 1 . . Leg 7 | . . 4 3 Wheel 2 | . . 2 . Hover . | . . . . Flight . | . . . . Utility 8 | 1 2 4 1 Device . | . . . . Storage 3 | 1 1 1 . Processor 3 | . . 2 1 Hackware . | . . . . Protection 2 | . 1 1 . Artifact . | . . . . Weapon 13 | 2 4 6 1 Energy Gun 3 | . 3 . . Energy Cannon . | . . . . Ballistic Gun 5 | 2 . 3 . Ballistic Cannon 1 | . . 1 . Launcher 2 | . . 2 . Special Weapon . | . . . . Impact Weapon 2 | . 1 . 1 Slashing Weapon . | . . . . Piercing Weapon . | . . . . Special Melee Weapon . | . . . . Unidentified Prototypes . | . . . . Corrupted Parts 1 | . . 1 . System Corruption 8 | . . 8 . Parts Lost 28 | . 5 8 15 Power 7 | . 1 2 4 Propulsion 10 | . 1 3 6 Utility 2 | . 1 1 . Weapon 9 | . 2 2 5 Highest Loss Streak 6 | . 5 3 6 To Critical Strikes . | . . . . Average Backups 7 | . 5 8 10 Power . | . 1 . 1 Propulsion . | . . . . Utility 1 | . 1 1 1 Weapon 4 | . 2 5 7 Tool/Special . | . . . . Unused Backups 9 | . . 2 7 Power 2 | . . 1 1 Propulsion . | . . . . Utility 3 | . . 1 2 Weapon 4 | . . . 4 Tool/Special . | . . . . Average Slot Usage (%) 77 | . 91 72 68 Engine 10 | . 13 10 6 Treads 8 | . 27 2 . Leg 8 | . . 12 12 Storage 18 | . 13 21 18 Processor 4 | . . 4 16 Protection 3 | . 8 1 . Energy Gun 4 | . 15 . . Ballistic Gun 4 | . 8 1 10 Ballistic Cannon 3 | . . 5 . Launcher 1 | . . 2 2 Impact Weapon 5 | . 2 8 1 Peak Build Rating 20 | 6 7 14 20 Average Rating 8 | 5 6 8 14 On Entrance 5 | . 6 6 10 Avg Prop Armor Cover (%) . | . . . . Naked Turns . | . . . . Heaviest Build 46 | 12 32 39 46 Greatest Support 40 | 40 40 40 30 Greatest Overweight (x) 12 | . 1 12 11 Average Overweight (x) 1 | . . 2 2 Largest Inventory Capacity 15 | 8 15 15 15 Average Capacity 14 | 7 14 15 15 Most Carried 15 | 1 10 15 14 Average Carried 7 | . 5 8 10 Final Capacity 15 | 8 15 15 15 Final Carried 13 | 1 5 13 8 Class Distribution -------------------- 75% | Mutant 24% | Scavenger-Mutant Dominant Class ---------------- Mutant | -10/Materials Mutant | -9/Materials Mutant | -8/Materials Resources | -11 -10 -9 -8 ----------- Run | Yrd Mat Mat Mat Matter Collected 1437 | 260 146 822 209 Remotely . | . . . . Salvage Created 1713 | . 717 677 319 Parts 90 | . 28 48 14 Haulers Intercepted 1 | . 1 . . Recyclers Shooed 2 | . 2 . . Parts Field Recycled . | . . . . Retrieved Matter . | . . . . Parts Self-Destructed . | . . . . Prevented . | . . . . Parts Restored . | . . . . Kills | -11 -10 -9 -8 ------- Run | Yrd Mat Mat Mat Combat Hostiles Destroyed 34 | . 11 16 7 Melee 5 | . 1 3 1 Guns 19 | . 7 7 5 AOE 6 | . 2 4 . Classes Destroyed 9 | . 6 2 1 Worker 5 | . . 5 . Builder 9 | . 1 5 3 Hauler 1 | . 1 . . Recycler 6 | . 3 2 1 Watcher 3 | . 2 1 . Swarmer 13 | . 3 9 1 Grunt 16 | . 8 4 4 Sentry 4 | . . 3 1 Heavy 1 | . . . 1 Best Kill Streak 7 | . 3 4 7 Combat Bots Only 4 | . 3 4 4 Max Kills in Single Turn 4 | . 1 4 3 Gunslinging . | . . . . Exploded 3 | . 1 3 . Melee 1 | . 1 1 1 Uniques/NPCs Destroyed . | . . . . Combat | -11 -10 -9 -8 -------- Run | Yrd Mat Mat Mat Hostile Shots Fired 371 | . 74 166 131 Missed 94 | . 18 43 33 Hits 277 | . 56 123 98 Projectile 277 | . 56 123 98 Critical Strikes 10 | . . 6 4 Damage Taken 3821 | . 637 1532 1652 Core 970 | . 83 322 565 Absorbed by Shields . | . . . . Core Remaining (%) 61 | 100 66 19 . Volleys Fired 138 | . 47 59 32 Largest 2 | . 2 1 2 Hottest 80 | . 80 40 58 Shots Fired 186 | . 86 61 39 Gun 136 | . 86 24 26 Cannon 12 | . . 12 . Launcher 38 | . . 25 13 Special . | . . . . Kinetic 97 | . 36 35 26 Thermal . | . . . . Explosive 38 | . . 25 13 Electromagnetic 51 | . 50 1 . Robot Hit Streak 16 | . 8 13 16 Robot Miss Streak 4 | . 3 4 1 Penetration Max . | . . . . Secondary Targets 2 | . 2 . . Max Gunslinging Chain 1 | . 1 . . Shots Hit Robots 159 | . 62 53 44 Core Hits 86 | 1 27 34 24 Critical Kills 1 | . . . 1 Critical Parts Destroyed 7 | . 3 4 . Critical Strikes 8 | . 3 4 1 Destroy 1 | . 1 . . Smash 7 | . 2 4 1 Melee Attacks 49 | . 8 21 20 Impact 49 | . 8 21 20 Slashing . | . . . . Piercing . | . . . . Sneak Attacks 7 | . 1 6 . Combat Hostiles . | . . . . Follow-up Attacks . | . . . . Damage Inflicted 3879 | 6 1026 1680 1167 Guns 1386 | . 664 316 406 Cannons 143 | . . 143 . Explosions 1427 | . 169 732 526 Melee 879 | . 165 479 235 Ramming 44 | 6 28 10 . Kinetic 1083 | . 218 459 406 Thermal 169 | . 169 . . Explosive 1258 | . . 732 526 Electromagnetic 446 | . 446 . . Impact 879 | . 165 479 235 Slashing . | . . . . Piercing . | . . . . Highest Corruption 9 | . . 9 . Average Corruption 8 | . . 8 . Corruption Purged . | . . . . Corruption Blocked . | . . . . Effects 37 | . . 37 . Message Errors 5 | . . 5 . Matter Fused 11 | . . 11 . Heat Flow Errors 4 | . . 4 . Energy Discharges 6 | . . 6 . Parts Fused 1 | . . 1 . Data Loss (minor) 6 | . . 6 . Data Loss (major) 2 | . . 2 . Misfires 2 | . . 2 . Overload Shots . | . . . . Overflow Damage 231 | . 49 173 9 Projectiles 9 | . . 9 . Explosions 45 | . . 45 . Melee 177 | . 49 119 9 Knockbacks 3 | . 1 2 . Impact 1 | . 1 . . Kinetic 2 | . . 2 . Secondary . | . . . . Self-Inflicted Damage 176 | . 6 103 67 Shots 9 | . 1 5 3 Rammed 7 | 2 5 . . Targets Rammed 10 | 2 6 2 . Kicked 2 | . . 2 . Crushed 1 | . 1 . . Highest Temperature 240 | . 216 240 101 Average Temperature 55 | . 56 63 32 Received Heat Transfer 1308 | . 330 429 549 Siege Activations . | . . . . Martial Activations . | . . . . Shielding Activations . | . . . . Robots Disrupted . | . . . . Combat Hostiles . | . . . . Robots Corrupted 6 | . 2 3 1 Combat Hostiles 4 | . 1 2 1 Parts Fried 8 | . 5 3 . Impact Corruptions 12 | . 2 7 3 Robots Melted . | . . . . Combat Hostiles . | . . . . Parts Melted . | . . . . Heat Transferred 300 | . 300 . . Parts Sabotaged . | . . . . Parts Stolen . | . . . . Parts Stripped . | . . . . Power Chain Reactions 3 | . 3 . . Alert | -11 -10 -9 -8 ------- Run | Yrd Mat Mat Mat Maximum Alert Level 1 | . . 1 . Low Security (%) 88 | 100 100 80 100 Level 1 11 | . . 19 . Level 2 . | . . . . Level 3 . | . . . . Level 4 . | . . . . Level 5 . | . . . . High Security . | . . . . Max Security . | . . . . Peak Influence 302 | . 74 302 111 Initial 111 | . . . 111 Average 61 | . 17 84 54 Influence Increases 1143 | . 334 550 259 Destroy 0b10 Robot/C 680 | . 220 320 140 Destroy 0b10 Robot/NC 120 | . 35 65 20 Destroy Leader 168 | . 56 72 40 Disable Machine 45 | . 15 15 15 Destroy Structure 115 | . 8 78 29 Lose Combat Pursuer 15 | . . . 15 Influence Decreases 1100 | . 334 286 480 Entered New Map 153 | . . . 153 Time Decay 745 | . 297 251 197 Lost Part 202 | . 37 35 130 Squads Dispatched 10 | . 3 2 5 Investigation 4 | . 1 2 1 Extermination . | . . . . Reinforcement 6 | . 2 . 4 Assault . | . . . . Garrison . | . . . . Intercept . | . . . . Searches Triggered . | . . . . Construction Impeded 2 | . . . 2 Haulers Reinforced . | . . . . Active Scanning Responses . | . . . . Cargo Convoy Interrupts . | . . . . Stealth | -11 -10 -9 -8 --------- Run | Yrd Mat Mat Mat Distress Signals 3 | . . 1 2 Communications Jammed . | . . . . Distress Signals . | . . . . Times Spotted 62 | . 19 24 19 Peak Tracking Total 10 | . 3 4 10 Tactical Retreats 1 | . . . 1 Traps | -11 -10 -9 -8 ------- Run | Yrd Mat Mat Mat Traps Triggered 4 | . 1 2 1 Indirectly . | . . . . Trap Hack Attempts . | . . . . Triggered . | . . . . Disarmed . | . . . . Reprogrammed . | . . . . Reused . | . . . . Traps Extracted . | . . . . Installed . | . . . . Triggered . | . . . . Machines | -11 -10 -9 -8 ---------- Run | Yrd Mat Mat Mat Machines Disabled 3 | . 1 1 1 Max in Single Turn 1 | . 1 1 1 Machines Repaired . | . . . . Machines Dismantled . | . . . . Machines Sabotaged . | . . . . Overloaded Fab Kills . | . . . . Hacking | -11 -10 -9 -8 --------- Run | Yrd Mat Mat Mat Machines Accessed 1 | . 1 . . Terminals . | . . . . Fabricators . | . . . . Repair Stations . | . . . . Recycling Units 1 | . 1 . . Scanalyzers . | . . . . Garrison Access . | . . . . Total Hacks 2 | . 2 . . Successful 1 | . 1 . . Failed 1 | . 1 . . Catastrophic . | . . . . Database Lockouts . | . . . . Manual . | . . . . Terminals . | . . . . Fabricators . | . . . . Repair Stations . | . . . . Recycling Units 2 | . 2 . . Scanalyzers . | . . . . Garrison Access . | . . . . Terminal Hacks . | . . . . Fabricator Hacks . | . . . . Repair Station Hacks . | . . . . Recycling Unit Hacks 1 | . 1 . . Report Inventory 1 | . 1 . . Scanalyzer . | . . . . Garrison Access Hacks . | . . . . Unauthorized Hacks . | . . . . Terminals . | . . . . Fabricators . | . . . . Repair Stations . | . . . . Recycling Units . | . . . . Scanalyzers . | . . . . Garrison Access . | . . . . Data Cores Recovered . | . . . . Used . | . . . . Hacking Detections 1 | . 1 . . Full Trace Events . | . . . . Feedback Events . | . . . . Feedback Blocked . | . . . . Robot Schematics Acquired . | . . . . Robots Built . | . . . . Authchips . | . . . . Time . | . . . . Total Robot Build Rating . | . . . . Part Schematics Acquired . | . . . . Parts Built . | . . . . Authchips . | . . . . Time . | . . . . Total Part Build Rating . | . . . . Part Studies Acquired . | . . . . Parts Repaired . | . . . . Time . | . . . . Parts Recycled . | . . . . Recycled Matter . | . . . . Retrieved Matter . | . . . . Retrieved Components . | . . . . Parts Scanalyzed . | . . . . Part Schematics Acquired . | . . . . Parts Damaged . | . . . . Bothacking | -11 -10 -9 -8 ------------ Run | Yrd Mat Mat Mat Used RIF Installer . | . . . . Robots Hacked . | . . . . Non-combat . | . . . . Combat . | . . . . Robot Hacks Applied . | . . . . Relay Couplers Released . | . . . . Fabnet Peak Effective % . | . . . . Robots Rewired . | . . . . Allies Hacked . | . . . . Hacks Repelled . | . . . . Allies | -11 -10 -9 -8 -------- Run | Yrd Mat Mat Mat Total Allies . | . . . . Largest Group . | . . . . Highest-Rated Group . | . . . . Highest-Rated Ally . | . . . . Total Orders . | . . . . Ally Attacks . | . . . . Total Damage . | . . . . Kills . | . . . . Allies Corrupted . | . . . . Allies Melted . | . . . . Intel | -11 -10 -9 -8 ------- Run | Yrd Mat Mat Mat Active Infowar (turns) 866 | . . 866 . Optics 866 | . . 866 . Robot Analysis Total . | . . . . Derelict Logs Recovered . | . . . . Drone Launches . | . . . . Drone Recoveries . | . . . . Exploration | -11 -10 -9 -8 ------------- Run | Yrd Mat Mat Mat Turns Passed 4520 | 108 1195 2748 469 Spaces Moved 1814 | 62 620 1007 125 Core 205 | 3 . 199 3 Treads 862 | 59 620 183 . Legs 623 | . . 501 122 Wheels 124 | . . 124 . Hover . | . . . . Flight . | . . . . Fastest Speed 50 | 50 160 95 190 Average Speed 219 | 154 164 251 263 Slowest Speed 650 | 160 240 650 600 Overloaded Moves . | . . . . Propulsion Burnouts . | . . . . Robots Hopped . | . . . . Potential Cave-ins . | . . . . Cave-ins Triggered . | . . . . Exploration Rate (%) 39 | 5 63 74 14 Regions Visited 3 Branch Regions . Pre-discovered Areas . | . . . . Known Exits Taken . | . . . . Unknown Exits Taken 3 | 1 1 1 . Scrap Searched . | . . . . Spaces Dug 14 | . . 14 . Terrain Destroyed 177 | . 8 137 32 Melee . | . . . . Projectile . | . . . . AOE 177 | . 8 137 32 Terrain Rammed . | . . . . Walls Destroyed . | . . . . Machines Disabled . | . . . . Actions | -11 -10 -9 -8 --------- Run | Yrd Mat Mat Mat Total 2095 | 70 704 1130 191 Wait . | . . . . Move 1812 | 62 619 1006 125 Hop . | . . . . Pick Up 25 | 1 10 12 2 Fast Attach 24 | 6 2 11 5 Attach 19 | . 6 6 7 Detach 10 | . 3 7 . Swap 1 | . . 1 . Drop 8 | . 3 5 . Fire 138 | . 47 59 32 Melee 49 | . 8 21 20 Ram . | . . . . Kick 2 | . . 2 . Crush 7 | 1 6 . . Escape Stasis . | . . . . Rewire . | . . . . Trap . | . . . . Miscellaneous . | . . . . Route ------- -11/Scrapyard -10/Materials (discovered 4 exits: [*Mat x2] / [*Min x2]) -9/Materials (discovered 4 exits: [*Mat x2] / [*Min x2]) -8/Materials History --------- Turn | Location | Event 11 | -11/Scrapyard | Discovered new exit (range 15) 109 | -11/Scrapyard | Entered Materials 294 | -10/Materials | Discovered new exit (range 15) 314 | -10/Materials | Build established: Mutant 497 | -10/Materials | Discovered new exit (range 14) 531 | -10/Materials | Discovered new exit (range 11) 591 | -10/Materials | Discovered new exit (range 12) 1127 | -10/Materials | Lost 5 parts (1p1n1u2w) 1304 | -10/Materials | Entered another Materials area 1304 | -9/Materials | Evolved 2 slots: Propulsion x1, Utility x1 1304 | -9/Materials | Discovered new exit (range 14) 1758 | -9/Materials | Lost 3 parts (1p1n1u) 3009 | -9/Materials | Core integrity fell below 50% 3186 | -9/Materials | Discovered new exit (range 8) 3381 | -9/Materials | Discovered new exit (range 4) 3389 | -9/Materials | Build established: Scavenger-Mutant 3822 | -9/Materials | Core integrity fell below 20% 3962 | -9/Materials | Discovered new exit (range 15) 4052 | -9/Materials | Entered another Materials area 4052 | -8/Materials | Evolved 2 slots: Power x1, Utility x1 4197 | -8/Materials | Lost 4 parts (1p2n1w) 4429 | -8/Materials | Lost 5 parts (1p1n3w) 4457 | -8/Materials | Build established: Mutant 4486 | -8/Materials | Core integrity fell below 50% 4510 | -8/Materials | Core integrity fell below 20% 4520 | -8/Materials | Lost 6 parts (2p3n1w) 4521 | -8/Materials | Destroyed by G-47 Trooper with Particle Gun Last Messages --------------- G-47 Trooper suffers critical hit (Smash). G-47 Trooper destroyed. Acquired 47 matter. Aluminum Leg destroyed. Destroyed Flight Unit. S-10 Pest system corrupted by crushing effect. Aluminum Leg destroyed. S-10 Pest misfires. Deuterium Engine destroyed. Hvy. Assault Rifle destroyed. Critical hit (Burn: +37). S-10 Pest IFF system glitched. Destroyed Lgt. Assault Rifle. Destroyed Flight Unit. S-10 Pest system corrupted by crushing effect. S-10 Pest system terminally corrupted. K-01 Serf collects debris. Acquired 13 matter. K-01 Serf collects debris. Map ----- +----------------------------------------------------+ | | | | | | | | | | | | | | | | | | | | | | | | | | | | | | | | | | | | | | | ???????????????????####??????????????????????????? | | ???????????????????# !]]?????????????????????????? | | ???????????????????? !]]?????????????????????????? | | ?????????????????????]] ????????????????????????? | | ?????????????????????? k ????????????????????????? | | ?????????????????#######k#########???????????????? | | ?????????? o ggsg@ s #???????????????? | | ?????????????????#########g##### #???????????????? | | ?????????????????#### ####/# #???????????????????? | | ?????????????????# =# #???????????????????? | | ?????????????????# [ # #???????????????????? | | ?????????????????# !|!%# #???????????????????? | | ?????????????????# % ###???????????????????? | | ??????????????? + !##????#???????????????? | | ?????????????# # " " %##??? #???????#####???? | | ?????????????##??# "" " ##??? #???????# #???? | | ?????????????????# """ #???? #???????# #???? | | ?????????????????#########+##### #???????# #???? | | ????????????????# #???????# #???? | | ??????????????????########### #???????# #???? | | ????????????????????????????# #???????# #???? | | ????????????????????????????# #???????# #???? | | ????????????????????????????# #???????# #???? | | ????????????????????????????# #???????# #???? | | ????????????????????????????# #???????# #???? | | ???????????????????????????##/##+##??????# #???? | | ???????????????????????????# #??????# #???? | | ???????????????????????????# T #??????# #???? | | ???????????????????????????# #??????# ##### | | ???????????????????????????#! #??????# # | | ???????????????????????????# #??????# # | +----------------------------------------------------+ Best States ------------- Heat Dissipation 31 Energy Generation 23 Energy Capacity 440 Matter Stores 500 Matter Capacity 500 Sight Range 18 Terrain Scan Density 10 Armor Coverage 150 Evasion (%) 45 Targeting Accuracy 13 Recoil Reduction 2 Item Schematics ----------------- None Robot Schematics ------------------ None Fabricated ------------ Nothing Repaired ---------- Nothing Studied --------- None Alien Tech Used ----------------- None Achievements -------------- Let's See Who's Tougher Maybe Next Time I'll Detach My Launcher Challenges ------------ None Game ------ Seed ReflexRemoteBox Manual? 0 Play Time 00:24:26 Cumulative 3.4 hours Start 2026.01.25 @ 19:22:30 End 2026.01.25 @ 20:04:49 Sessions 1 Manual Loads 0 Difficulty Rogue Special Mode None Game No. 8 Rogue 8 Adventurer 0 Explorer 0 Win Type - Total 0 Types 0/0/0/0/0/0/0/0/0/0 Lore% 0 Gallery% 8 Achievement% 7 Wizard Run 0 Options --------- Layout 1 ASCII 0 Keyboard 1 Movement Vi Keybinds 0 Fullscreen 1 Font 24/Smallcaps Map View 50x40 Zoom Use 0% Tactical HUD 0 Map Filters NONE Filters NONE Steam 0 RUN: c7772739-316f-407f-bf08-f728e454ef31